bitfinex-derivatives/quotes_ETHF0:USTF0_20240907
["timestamp","ask_amount","ask_price","bid_price","bid_amount"]
[1725709875532,0.81389,2286.6,2286.4,1.26]
[1725709875732,0.81389,2286.6,2286.4,1.69742]
[1725709876940,3.64521,2286.5,2286.4,1.26]
[1725709877835,3.2078,2286.5,2286.3,1.6557]
[1725709878036,0.43743,2286.4,2286.3,1.6557]
[1725709878231,0.82063,2286.4,2286.3,1.6557]
[1725709878736,4.7568,2286.4,2286.0,1.13728417]
[1725709878941,3.64529,2286.1,2286.0,0.3638]
[1725709879337,0.43751,2286.0,2285.9,1.6176]
[1725709879540,0.82491,2286.0,2285.9,1.6176]
[1725709880134,0.82491,2286.0,2285.9,0.3576]
[1725709880135,1.20811,2286.0,2285.9,0.3576]
[1725709880337,0.7706,2286.0,2285.9,1.6176]
[1725709880540,0.7706,2286.0,2285.9,1.26]
[1725709880944,3.9784,2286.0,2285.9,1.26]
[1725709882146,0.4375,2286.1,2285.9,1.69752]
[1725709882334,0.4375,2286.1,2286.0,1.26]
[1725709882649,0.80098,2286.2,2286.0,1.26]
[1725709883143,0.80098,2286.2,2286.1,0.3593]
[1725709885251,4.00878,2286.2,2286.1,0.3593]
[1725709886154,0.80098,2286.2,2286.1,0.3593]
[1725709886555,4.00878,2286.2,2286.1,0.3593]
[1725709887452,0.80098,2286.2,2286.1,0.3593]
[1725709887658,4.00878,2286.2,2286.1,0.3593]
[1725709895268,0.80098,2286.2,2286.1,0.3593]
[1725709895572,4.00878,2286.2,2286.1,0.3593]
[1725709896066,0.80098,2286.2,2286.1,0.3593]
[1725709896269,4.00878,2286.2,2286.1,0.3593]
[1725709896763,3.64528,2286.2,2286.1,0.3593]
[1725709897062,4.04028,2286.2,2286.1,0.3593]
[1725709899363,0.83248,2286.2,2286.1,0.3593]
[1725709899562,4.04028,2286.2,2286.1,0.3593]
[1725709903376,1.09372,2286.1,2285.8,0.7161]
[1725709903673,0.4376,2285.5,2285.4,0.7429]
[1725709903865,0.43762,2285.4,2285.3,0.3906]
[1725709904065,0.82832,2285.4,2285.3,0.3906]
[1725709904260,0.43764,2285.3,2285.2,1.6413]
[1725709905374,3.64544,2285.3,2285.2,1.6413]
[1725709906172,3.64544,2285.3,2285.2,0.3813]
[1725709908967,0.43764,2285.3,2285.2,0.3813]
[1725709909171,3.64544,2285.3,2285.2,0.3813]
[1725709914481,0.43764,2285.3,2285.2,0.3813]
[1725709914670,3.64544,2285.3,2285.2,0.3813]
[1725709915975,0.43764,2285.3,2285.2,0.3813]
[1725709916281,3.64544,2285.3,2285.2,0.3813]
[1725709917078,0.43764,2285.3,2285.2,0.3813]
[1725709917274,3.64544,2285.3,2285.2,0.3813]
[1725709918179,0.43766,2285.2,2285.1,1.6506]
[1725709918678,1.21506,2285.2,2285.1,1.6506]
[1725709919071,0.7774,2285.2,2285.1,1.6506]
[1725709919272,1.21506,2285.2,2285.1,1.6506]
[1725709921290,1.21506,2285.2,2285.1,0.3906]
[1725709921586,0.4377,2285.0,2284.8,1.6552]
[1725709921887,0.43772,2284.9,2284.8,1.6552]
[1725709922788,0.43772,2284.9,2284.8,0.3952]
[1725709923380,3.64551,2285.0,2284.8,1.6552]
[1725709923582,3.64551,2285.0,2284.9,0.3654]
[1725709923775,3.2078,2285.3,2284.9,4.7422]
[1725709923984,3.2078,2285.3,2285.2,1.69766]
[1725709924582,3.2078,2285.3,2285.2,2.43386]
[1725709924987,3.64537,2285.7,2285.4,0.43761]
[1725709925183,3.64537,2285.7,2285.5,0.366]
[1725709925381,0.43758,2285.6,2285.5,0.366]
[1725709925688,0.4376,2285.5,2285.3,1.626]
[1725709925882,0.43764,2285.3,2285.2,0.7362]
[1725709926076,0.43764,2285.3,2285.2,0.3624]
[1725709926282,0.81194,2285.3,2285.2,0.3624]
[1725709926892,0.43766,2285.2,2285.0,1.6338]
[1725709927090,0.43766,2285.2,2285.0,2.4339]
[1725709927288,0.81195,2285.3,2285.0,2.4339]
[1725709927991,0.43766,2285.2,2285.0,0.7362]
[1725709928791,0.81195,2285.3,2285.0,1.17389]
[1725709929991,0.43768,2285.1,2285.0,0.7362]
[1725709930183,3.2078,2285.1,2284.8,0.3813]
[1725709930390,0.4377,2285.0,2284.9,0.3777]
[1725709930586,0.7974,2285.0,2284.9,0.3777]
[1725709930994,3.64549,2285.1,2284.9,0.3777]
[1725709932201,2.8591275,2285.0,2284.9,0.3777]
[1725709932399,3.2968275,2285.0,2284.9,0.3777]
[1725709932701,3.2503275,2285.0,2284.8,0.81903]
[1725709933000,3.6880275,2285.0,2284.9,0.3932]
[1725709933403,3.2503275,2285.0,2284.9,0.3932]
[1725709935505,2.8591275,2285.0,2284.9,0.3932]
[1725709936210,3.2968275,2285.0,2284.9,0.3932]
[1725709936613,2.8591275,2285.0,2284.9,0.3932]
[1725709938011,2.8591275,2285.0,2284.9,0.83092]
[1725709938513,3.2968275,2285.0,2284.9,0.3932]
[1725709939012,3.2968275,2285.0,2284.8,0.81903]
[1725709939207,0.3764,2284.9,2284.8,0.81903]
[1725709940304,3.64549,2285.1,2284.9,0.43772]
[1725709940504,3.64549,2285.1,2285.0,0.3954]
[1725709941309,3.2078,2285.1,2285.0,0.3954]
[1725709941614,3.64548,2285.1,2285.0,0.3954]
[1725709945415,0.43768,2285.1,2285.0,0.3954]
[1725709950922,3.2968075,2285.1,2285.0,0.3954]
[1725709955327,0.43768,2285.1,2285.0,0.3954]
[1725709958930,0.4377,2285.0,2284.9,1.14147947]
[1725709959232,0.4377,2285.0,2284.9,3.33126617]
[1725709959233,4.0202,2285.0,2284.9,3.33126617]
[1725709960126,4.0202,2285.0,2284.9,1.14147947]
[1725709960332,4.0202,2285.0,2284.9,4.96578649]
[1725709960630,4.0202,2285.0,2284.9,4.96574967]
[1725709961725,4.0202,2285.0,2284.9,4.97113294]
[1725709961923,4.0202,2285.0,2284.9,4.97114332]
[1725709962132,4.0202,2285.0,2284.9,3.8242702]
[1725709962430,6.8793275,2285.0,2284.9,1.6345]
[1725709968236,3.2968275,2285.0,2284.9,2.07222]
[1725709968438,3.2968275,2285.0,2284.9,1.6345]
[1725709968640,4.0638275,2285.0,2284.9,1.6345]
[1725709969537,4.0638275,2285.0,2284.9,5.16196668]
[1725709969538,1.2047,2285.0,2284.9,5.16196668]
[1725709970638,1.2047,2285.0,2284.9,5.16197562]
[1725709977742,4.0638275,2285.0,2284.9,2.40723853]
[1725709977940,1.2047,2285.0,2284.9,2.40723853]
[1725709978743,4.0638275,2285.0,2284.9,2.40723853]
[1725709979535,1.2047,2285.0,2284.9,2.40723853]
[1725709980140,4.0638275,2285.0,2284.9,2.40723853]
[1725709981341,4.0638275,2285.0,2284.9,1.14723853]
[1725709984648,1.2047,2285.0,2284.9,3.90198363]
[1725709985037,13.77,2285.0,2284.9,3.90198363]
[1725709985238,1.53202,2284.9,2284.8,1.14769043]
[1725709985445,1.53209,2284.8,2284.7,1.14769043]
[1725709985648,0.43775,2284.7,2284.6,1.14769043]
[1725709985846,3.31146845,2284.7,2284.6,1.14769043]
[1725709986051,0.43775,2284.7,2284.6,3.33788716]
[1725709986347,0.43775,2284.7,2284.6,1.14769043]
[1725709986942,0.43775,2284.7,2284.6,2.19009004]
[1725709987141,0.43775,2284.7,2284.6,3.33771839]
[1725709988147,0.43775,2284.7,2284.6,3.77548839]
[1725709988350,0.43775,2284.7,2284.6,3.77541823]
[1725709988643,0.43775,2284.7,2284.6,2.62778988]
[1725709988846,0.43775,2284.7,2284.6,4.34000909]
[1725709989042,0.43775,2284.7,2284.6,2.19001988]
[1725709989243,0.43775,2284.7,2284.6,2.19003251]
[1725709989651,0.43775,2284.7,2284.6,1.14725537]
[1725709991652,0.43775,2284.7,2284.6,3.33729226]
[1725709991850,0.43775,2284.7,2284.6,1.14725537]
[1725709992055,0.43775,2284.7,2284.6,1.58502537]
[1725709992356,0.43777,2284.6,2284.5,1.58503537]
[1725709992557,0.43777,2284.6,2284.5,3.77513218]
[1725709994351,0.43777,2284.6,2284.5,1.58503537]
[1725709995055,0.43777,2284.6,2284.5,3.77511074]
[1725709995257,0.82267,2284.6,2284.5,1.58503537]
[1725709995562,1.59157,2284.6,2284.5,1.58503537]
[1725709995958,3.2078,2284.7,2284.5,1.58503537]
[1725709995959,6.51921845,2285.0,2284.6,0.43777]
[1725709996159,0.43774,2284.8,2284.7,1.18405]
[1725709996355,6.85041845,2285.0,2284.7,1.56205]
[1725709997254,0.43774,2284.8,2284.7,1.56205]
[1725709997559,0.43773,2284.9,2284.7,1.56205]
[1725709997752,0.43773,2284.9,2284.8,0.43774]
[1725709997953,0.43773,2284.9,2284.8,1.69774]
[1725709998470,0.43773,2284.9,2284.8,1.26]
[1725709998960,0.43773,2284.9,2284.8,1.69774]
[1725709999161,0.43773,2284.9,2284.8,1.26]
[1725709999356,0.43773,2284.9,2284.8,1.69774]
[1725710000164,0.43773,2284.9,2284.8,0.43774]
[1725710001356,6.08151845,2285.0,2284.9,0.43772]
[1725710001759,3.2078,2285.0,2284.9,0.43772]
[1725710001957,6.08151845,2285.0,2284.9,0.43772]
[1725710002156,0.43772,2284.9,2284.8,1.69773]
[1725710005963,6.88742845,2285.0,2284.8,1.69773]
[1725710007375,0.43772,2284.9,2284.8,1.69773]
[1725710009276,0.43772,2284.9,2284.8,2.84498537]
[1725710010567,4.01371,2285.0,2284.8,2.84498537]
[1725710010972,0.43772,2284.9,2284.8,2.84498537]
[1725710012462,4.01371,2285.0,2284.9,0.43772]
[1725710012662,3.2078,2285.0,2284.9,1.69772]
[1725710012863,0.4377,2286.4,2285.5,0.4376]
[1725710012864,2.87371845,2285.6,2285.5,0.4376]
[1725710013084,3.63511845,2286.1,2285.5,5.38607067]
[1725710013375,0.43766,2285.2,2285.1,1.14407944]
[1725710013680,7.5838,2285.2,2284.7,0.3936]
[1725710013977,0.22197208,2285.6,2284.7,0.3936]
[1725710013978,5.50154184,2284.9,2284.7,0.3936]
[1725710014168,3.2078,2284.9,2284.7,0.3936]
[1725710014369,3.2078,2284.9,2284.6,0.3578]
[1725710014370,6.67054184,2284.8,2284.4,1.52277944]
[1725710014679,2.8671773,2284.7,2284.5,0.3936]
[1725710014981,3.6339773,2284.7,2284.5,0.3936]
[1725710015273,3.2078,2284.6,2284.5,0.3936]
[1725710018680,5.50113721,2284.6,2284.5,0.3936]
[1725710019074,3.2078,2284.6,2284.5,0.3936]
[1725710019270,5.50106135,2284.6,2284.5,0.3936]
[1725710020478,2.29326135,2284.6,2284.5,0.3936]
[1725710020684,2.29326135,2284.7,2284.5,4.7712]
[1725710020983,2.29326135,2284.8,2284.5,0.3936]
[1725710022582,2.29326135,2284.8,2284.6,0.43777]
[1725710022784,0.3707,2284.9,2284.5,1.97545944]
[1725710023579,0.80842,2284.9,2284.5,1.53767944]
[1725710025885,0.43774,2284.8,2284.5,1.53767944]
[1725710026079,0.3687,2284.7,2284.5,1.53767944]
[1725710026475,0.7387,2284.6,2284.5,0.3936]
[1725710027684,0.3687,2284.7,2284.5,0.83139]
[1725710028179,0.3687,2284.7,2284.5,0.3936]
[1725710030185,0.3687,2284.7,2284.5,1.53767944]
[1725710030381,0.3687,2284.7,2284.5,0.3936]
[1725710032092,0.80646,2284.7,2284.5,0.3936]
[1725710032891,0.80646,2284.7,2284.5,0.83139]
[1725710033286,0.3687,2284.7,2284.5,0.83139]
[1725710034189,0.3687,2284.7,2284.5,1.97546944]
[1725710034391,3.2078,2284.8,2284.6,0.43776]
[1725710034687,3.2078,2284.8,2284.7,0.3623]
[1725710035794,3.5732,2284.8,2284.7,0.3623]
[1725710035989,3.5732,2284.8,2284.7,0.80005]
[1725710036884,5.86646135,2284.8,2284.7,0.80005]
[1725710039093,2.65866135,2284.8,2284.7,0.80005]
[1725710039490,3.09640135,2284.8,2284.7,0.3623]
[1725710040099,3.09640135,2284.8,2284.6,1.69776]
[1725710040290,0.3898,2284.7,2284.6,1.69776]
[1725710040892,0.3898,2284.7,2284.6,0.43776]
[1725710041397,2.65866135,2284.8,2284.7,0.43775]
[1725710043301,3.09640135,2284.8,2284.6,0.43777]
[1725710043491,3.09640135,2284.8,2284.6,0.80367]
[1725710043691,0.3637,2284.7,2284.6,0.80367]
[1725710047398,3.5716,2284.9,2284.8,0.43774]
[1725710049293,4.00932,2284.9,2284.7,1.69775]
[1725710050101,4.00932,2284.9,2284.8,0.43774]
[1725710051102,0.80152,2284.9,2284.8,0.43774]
[1725710052002,3.09478135,2284.9,2284.8,0.43774]
[1725710054112,3.09478135,2284.9,2284.7,1.69774]
[1725710054911,3.09478135,2284.9,2284.8,0.43774]
[1725710055209,2.29326135,2285.1,2284.9,1.53202]
[1725710055406,2.29326135,2285.4,2285.0,6.16912944]
[1725710055616,2.29326135,2285.5,2285.2,1.26]
[1725710055814,2.29326135,2285.6,2285.5,0.4376]
[1725710056017,2.29326135,2285.8,2285.7,0.43756]
[1725710056313,2.29326135,2286.1,2285.9,0.43753]
[1725710056501,2.29326135,2286.1,2285.9,1.26]
[1725710056702,2.73075135,2286.1,2285.9,1.69751]
[1725710056907,2.73075135,2286.1,2285.9,2.06141]
[1725710057210,2.73075135,2286.1,2285.9,1.6239]
[1725710057409,0.43749,2286.1,2285.9,1.6239]
[1725710058005,0.43749,2286.1,2285.9,0.3639]
[1725710059606,3.6008,2286.2,2285.7,3.03]
[1725710059807,0.43753,2285.9,2285.7,3.03]
[1725710060714,0.43753,2285.9,2285.7,3.46756]
[1725710062616,0.3678,2285.8,2285.6,0.80318]
[1725710062817,1.1414,2285.8,2285.6,0.80318]
[1725710063114,1.57896,2285.8,2285.6,0.3656]
[1725710063503,1.57896,2285.8,2285.6,0.80318]
[1725710064119,1.1414,2285.8,2285.6,0.80318]
[1725710064512,1.57895,2285.8,2285.6,0.3656]
[1725710065413,1.57895,2285.8,2285.6,0.80318]
[1725710066015,0.43756,2285.7,2285.6,0.3656]
[1725710066417,1.57896,2285.8,2285.6,0.3656]
[1725710068224,4.78676,2285.8,2285.6,0.3656]
[1725710068721,3.2078,2285.8,2285.7,0.43756]
[1725710069017,0.43753,2285.9,2285.7,0.43756]
[1725710069916,0.43753,2285.9,2285.8,0.43754]
[1725710070121,0.43756,2285.7,2285.6,0.80317]
[1725710070321,0.43756,2285.8,2285.6,0.80317]
[1725710070514,0.43756,2285.7,2285.6,0.3656]
[1725710072019,0.43756,2285.7,2285.6,0.80318]
[1725710072811,3.64536,2285.8,2285.6,0.80318]
[1725710073416,0.43756,2285.7,2285.6,0.3656]
[1725710073613,0.43756,2285.7,2285.6,0.80318]
[1725710073818,0.43756,2285.7,2285.6,0.3656]
[1725710074816,0.43756,2285.7,2285.6,0.80318]
[1725710075919,0.43756,2285.7,2285.6,0.3656]
[1725710076627,0.43756,2285.7,2285.6,0.80318]
[1725710076825,0.43756,2285.7,2285.6,0.3656]
[1725710077821,0.82776,2285.7,2285.6,0.80318]
[1725710078122,0.82776,2285.7,2285.6,1.6256]
[1725710080928,0.82776,2285.7,2285.6,2.06318]
[1725710083225,0.43756,2285.7,2285.6,2.06318]
[1725710084021,3.64536,2285.8,2285.6,2.06318]
[1725710085222,0.43756,2285.7,2285.6,1.6256]
[1725710085527,0.43756,2285.7,2285.6,2.06318]
[1725710087532,3.2078,2285.8,2285.6,2.06318]
[1725710087925,0.43756,2285.7,2285.6,2.06318]
[1725710089824,0.43756,2285.8,2285.6,2.06318]
[1725710091932,0.43756,2285.8,2285.7,0.43756]
[1725710092534,0.43756,2285.8,2285.6,2.06317]
[1725710093225,3.64536,2285.8,2285.6,2.06317]
[1725710093423,0.43756,2285.7,2285.6,1.6256]
[1725710093633,0.80116,2285.7,2285.6,1.6256]
[1725710094021,0.3636,2285.7,2285.6,2.06318]
[1725710095037,0.80116,2285.7,2285.6,2.06318]
[1725710095535,0.80116,2285.7,2285.6,0.80318]
[1725710097637,0.80116,2285.7,2285.6,0.3656]
[1725710097941,0.80116,2285.7,2285.6,0.80318]
[1725710099432,3.09442135,2285.7,2285.6,0.80318]
[1725710101542,0.80116,2285.7,2285.6,0.80318]
[1725710102155,3.09724803,2285.7,2285.6,0.80318]
[1725710102355,0.80116,2285.7,2285.6,0.80318]
[1725710104556,3.09755253,2285.7,2285.6,0.80318]
[1725710105355,3.09755253,2285.7,2285.2,7.1621286]
[1725710105356,4.7388,2285.7,2285.2,1.14407944]
[1725710105545,3.30871071,2285.3,2285.2,0.81896]
[1725710105750,2.87107071,2285.3,2285.2,0.81896]
[1725710106058,0.43763,2285.4,2285.2,0.3813]
[1725710106356,2.87041123,2285.3,2285.2,0.81896]
[1725710108260,2.87041123,2285.3,2285.2,1.03832065]
[1725710109560,2.29564475,2285.3,2285.2,1.03832065]
[1725710110463,2.29564475,2285.3,2285.2,5.41432065]
[1725710111358,2.29564475,2285.3,2285.2,0.3813]
[1725710111559,3.30805123,2285.3,2285.1,0.43767]
[1725710111756,2.29555051,2285.2,2285.1,0.43767]
[1725710112566,3.86319051,2285.4,2285.2,0.43765]
[1725710114162,3.86319051,2285.4,2285.2,1.69765]
[1725710114358,3.86319051,2285.4,2285.3,0.3807]
[1725710114753,6.07821123,2285.5,2285.4,0.43762]
[1725710114754,5.50335051,2285.5,2285.4,0.43762]
[1725710114953,5.50335051,2285.5,2285.4,2.44732]
[1725710115161,5.50335051,2285.5,2285.4,0.43762]
[1725710115366,3.2078,2285.5,2285.4,0.81832]
[1725710117352,5.50335051,2285.5,2285.4,0.81832]
[1725710118260,3.2078,2285.5,2285.4,0.81832]
[1725710118458,5.50335051,2285.5,2285.4,0.81832]
[1725710118962,3.2078,2285.5,2285.4,0.81832]
[1725710119560,5.94095051,2285.5,2285.4,0.3807]
[1725710119761,5.94095051,2285.5,2285.3,1.69763]
[1725710120063,5.94095051,2285.5,2285.4,0.3587]
[1725710123465,0.43762,2285.4,2285.3,1.69763]
[1725710123664,1.56362,2285.4,2285.3,0.43763]
[1725710123860,1.56362,2285.4,2285.2,1.58171944]
[1725710124467,1.56362,2285.4,2285.3,0.43764]
[1725710124766,1.126,2285.4,2285.3,0.43764]
[1725710126871,3.2078,2285.5,2285.4,0.43762]
[1725710127071,3.2078,2285.5,2285.4,1.16542]
[1725710127271,3.2078,2285.5,2285.4,1.55342]
[1725710127569,6.07821123,2285.5,2285.4,1.55342]
[1725710128167,2.87041123,2285.5,2285.4,1.55342]
[1725710132170,2.87041123,2285.6,2285.5,0.4376]
[1725710134671,2.29458712,2285.6,2285.5,0.4376]
[1725710138379,3.30798123,2285.7,2285.5,0.4376]
[1725710138684,2.29511178,2285.6,2285.5,0.4376]
[1725710139081,2.295102,2285.6,2285.5,0.4376]
[1725710139477,3.30798123,2285.7,2285.5,0.4376]
[1725710140682,5.6352,2285.6,2285.3,1.14407944]
[1725710140891,5.6352,2285.6,2285.0,1.14407944]
[1725710140892,0.43768,2285.1,2285.0,1.14407944]
[1725710141185,3.2078,2285.1,2284.8,1.14407944]
[1725710141378,3.83064579,2285.0,2284.7,2.84181944]
[1725710141578,1.72162595,2284.8,2284.7,2.84181944]
[1725710142077,1.72162595,2284.8,2284.7,1.69774]
[1725710142278,1.72162595,2284.8,2284.6,1.58184944]
[1725710142478,5.60288035,2284.8,2284.6,1.26]
[1725710142782,3.30754456,2284.8,2284.6,1.69777]
[1725710143082,2.86980456,2284.8,2284.6,1.69777]
[1725710143283,2.29376871,2284.7,2284.5,0.43778]
[1725710143480,1.72035629,2284.6,2284.5,0.43778]
[1725710143689,1.72035629,2284.6,2284.5,1.69778]
[1725710143889,2.29376871,2284.7,2284.5,1.69778]
[1725710144080,1.71976663,2284.6,2284.5,1.69778]
[1725710147192,1.71976663,2284.7,2284.5,1.69778]
[1725710149674,0.43774,2284.8,2284.5,1.69778]
[1725710149888,0.43774,2284.8,2284.6,0.43777]
[1725710150277,2.81736663,2285.0,2284.7,1.26]
[1725710150487,1.71976663,2285.2,2284.9,1.26]
[1725710150684,2.15743663,2285.2,2285.1,1.26]
[1725710150886,0.43767,2285.2,2285.1,1.26]
[1725710151284,5.36521663,2285.3,2285.1,1.26]
[1725710151491,1.71976663,2285.2,2285.1,1.26]
[1725710151993,5.36521663,2285.3,2285.1,1.26]
[1725710152193,0.43766,2285.2,2285.0,1.26]
[1725710152389,0.43766,2285.2,2285.0,1.6977]
[1725710152892,2.15742663,2285.2,2285.0,1.6977]
[1725710153887,4.376,2285.1,2284.6,4.35187944]
[1725710154087,0.43773,2284.9,2284.6,1.26]
[1725710154391,0.43773,2284.9,2284.7,0.364]
[1725710155993,6.09006663,2285.0,2284.7,0.364]
[1725710155994,0.43774,2284.8,2284.7,0.364]
[1725710158390,0.43774,2284.8,2284.6,1.69776]
[1725710159482,0.43774,2284.8,2284.6,1.26]
[1725710159686,0.43774,2284.8,2284.6,1.69777]
[1725710160483,0.43773,2284.9,2284.7,0.43775]
[1725710160687,0.43773,2284.9,2284.8,1.26]
[1725710161088,4.3703,2285.0,2284.8,1.69774]
[1725710162096,0.43772,2284.9,2284.8,1.69774]
[1725710162895,3.64552,2284.9,2284.8,1.69774]
[1725710163794,3.2078,2284.9,2284.8,1.69774]
[1725710164094,3.64552,2284.9,2284.8,1.26]
[1725710164894,3.2078,2284.9,2284.6,1.69776]
[1725710165092,0.43775,2284.8,2284.6,1.69776]
[1725710165793,0.43775,2284.7,2284.5,0.7465]
[1725710165997,0.43775,2284.7,2284.5,2.0065]
[1725710166198,0.43775,2284.8,2284.6,0.43776]
[1725710166396,0.43775,2284.8,2284.7,1.26]
[1725710166599,1.60021,2285.0,2284.8,0.43774]
[1725710166800,1.60021,2285.0,2284.8,1.26]
[1725710166801,0.43772,2284.9,2284.8,1.26]
[1725710167094,1.60021,2285.0,2284.8,1.69774]
[1725710167403,0.43772,2284.9,2284.8,1.26]
[1725710168789,1.60021,2285.0,2284.8,2.08484]
[1725710169593,0.43772,2284.9,2284.8,1.6471]
[1725710169900,0.43772,2284.9,2284.8,0.3871]
[1725710170203,1.1625,2285.0,2284.8,0.3871]
[1725710170395,0.43772,2284.9,2284.8,0.3871]
[1725710171194,3.31997663,2285.0,2284.8,0.82484]
[1725710171398,1.60021,2285.0,2284.8,0.82484]
[1725710171606,0.43772,2284.9,2284.8,0.82484]
[1725710172898,0.43772,2284.9,2284.8,0.3871]
[1725710173103,1.21941,2285.0,2284.8,1.21234]
[1725710173294,1.21941,2285.0,2284.9,0.3776]
[1725710173892,0.43771,2285.0,2284.9,0.3776]
[1725710174091,0.43772,2284.9,2284.8,1.21232]
[1725710174296,0.80182,2284.9,2284.8,1.21232]
[1725710174989,0.43771,2285.0,2284.8,2.47232]
[1725710178200,2.52155663,2285.1,2284.8,2.47232]
[1725710179212,0.4377,2285.0,2284.8,2.47232]
[1725710179402,0.4377,2285.0,2284.8,2.0346]
[1725710179900,2.15746663,2285.0,2284.8,2.0346]
[1725710180297,2.15746663,2285.0,2284.8,0.7746]
[1725710180898,2.15746663,2285.0,2284.8,1.21233]
[1725710182101,1.71976663,2285.0,2284.9,1.69772]
[1725710183710,1.71976663,2285.0,2284.9,1.26]
[1725710184104,6.30334871,2285.1,2284.9,1.26]
[1725710184410,6.30334871,2285.1,2284.9,1.69772]
[1725710184602,0.4377,2285.0,2284.9,1.26]
[1725710185203,2.73146871,2285.0,2284.9,1.26]
[1725710186509,2.29376871,2285.0,2284.9,1.69772]
[1725710187618,2.29376871,2285.0,2284.9,1.26]
[1725710188001,2.73146871,2285.0,2284.9,1.26]
[1725710188210,0.43772,2284.9,2284.8,1.91867944]
[1725710188519,0.43772,2284.9,2284.8,0.7746]
[1725710188708,0.43772,2284.9,2284.8,1.91867944]
[1725710188908,0.43772,2284.9,2284.8,0.7746]
[1725710188909,0.80852,2284.9,2284.8,0.7746]
[1725710189411,0.80852,2284.9,2284.8,1.91867944]
[1725710189811,0.80852,2284.9,2284.8,0.7746]
[1725710190216,0.80852,2284.9,2284.8,1.91867944]
[1725710193307,3.10228871,2284.9,2284.8,1.91867944]
[1725710193513,3.10335824,2284.9,2284.8,0.7746]
[1725710193715,0.80852,2284.9,2284.8,0.7746]
[1725710193915,3.10335151,2284.9,2284.8,0.7746]
[1725710194114,0.80852,2284.9,2284.8,0.7746]
[1725710194926,3.67832456,2284.9,2284.8,0.7746]
[1725710197718,0.80852,2284.9,2284.8,0.3871]
[1725710197919,0.43774,2284.8,2284.6,0.43776]
[1725710198125,2.29442002,2284.7,2284.6,0.43776]
[1725710199023,2.29442002,2284.7,2284.6,5.95863944]
[1725710200620,2.29442002,2284.7,2284.6,1.58183944]
[1725710200822,2.29442002,2284.7,2284.6,5.95863944]
[1725710202722,2.29411285,2284.8,2284.7,0.43775]
[1725710202927,3.10264285,2284.9,2284.7,4.15638513]
[1725710203123,3.10264285,2284.9,2284.7,1.96652944]
[1725710203530,3.10264285,2284.9,2284.8,1.14407944]
[1725710204423,3.10264285,2284.9,2284.7,1.96652944]
[1725710205124,2.29411285,2284.8,2284.7,1.96652944]
[1725710205321,3.10264285,2284.9,2284.7,4.15639526]
[1725710205630,3.10264285,2284.9,2284.7,1.96652944]
[1725710205822,2.29411285,2284.8,2284.7,1.96652944]
[1725710206425,2.29411285,2284.8,2284.7,4.15640091]
[1725710206724,2.29411285,2284.8,2284.7,4.15644064]
[1725710207632,2.29411285,2284.8,2284.7,3.77174064]
[1725710208438,2.29411285,2284.8,2284.7,1.58182944]
[1725710208830,2.29411285,2284.8,2284.7,3.77172498]
[1725710209428,2.73185285,2284.8,2284.7,3.33397498]
[1725710211429,2.73185285,2284.8,2284.7,1.14407944]
[1725710212827,2.73185285,2284.8,2284.7,1.58182944]
[1725710214030,2.73185285,2284.8,2284.7,1.14407944]
[1725710215037,2.29411285,2284.8,2284.7,1.58182944]
[1725710216127,2.73185285,2284.8,2284.7,1.14407944]
[1725710217931,3.30576503,2284.8,2284.6,1.69777]
[1725710218136,3.02311801,2284.7,2284.6,1.69777]
[1725710218332,0.7284,2284.7,2284.6,1.69777]
[1725710219540,3.02294598,2284.7,2284.6,1.69777]
[1725710221338,3.02294598,2284.7,2284.6,2.07787]
[1725710223346,3.46069598,2284.7,2284.6,0.81787]
[1725710223544,1.16615,2284.7,2284.6,0.81787]
[1725710223948,0.7284,2284.7,2284.6,0.81787]
[1725710224247,3.02254437,2284.7,2284.6,0.81787]
[1725710225037,0.7284,2284.7,2284.6,4.15191292]
[1725710225941,1.16615,2284.7,2284.6,4.15191292]
[1725710229645,1.16615,2284.7,2284.6,4.1519162]
[1725710230045,1.16615,2284.7,2284.6,4.15190796]
[1725710230252,5.93969437,2284.8,2284.7,0.43775]
[1725710230449,5.93969437,2284.8,2284.6,3.67857457]
[1725710230644,5.93969437,2284.8,2284.7,1.14407944]
[1725710231357,5.93969437,2284.8,2284.7,1.52797944]
[1725710231851,5.50194437,2284.8,2284.7,3.22572944]
[1725710232151,1.72111003,2285.4,2284.8,4.3768]
[1725710232359,1.72111003,2285.7,2285.3,7.85853589]
[1725710232561,1.72111003,2285.8,2285.7,0.43756]
[1725710232851,1.72111003,2285.9,2285.8,0.43754]
[1725710233059,2.86854529,2286.2,2285.8,1.26]
[1725710233356,3.2078,2286.3,2286.1,1.26]
[1725710233855,3.64525,2286.3,2286.1,1.26]
[1725710234553,0.3625,2286.4,2286.1,1.26]
[1725710235053,2.86854529,2286.7,2286.3,1.69743]
[1725710235255,3.63264529,2286.8,2286.5,1.26]
[1725710235462,0.7641,2286.8,2286.5,1.26]
[1725710236855,3.9719,2286.8,2286.5,1.26]
[1725710238754,3.9719,2286.8,2286.2,3.2078]
[1725710238955,3.9719,2286.8,2285.8,0.28294154]
[1725710238956,3.64522,2286.5,2286.1,1.26]
[1725710239862,0.43743,2286.4,2286.1,1.26]
[1725710240060,0.3857,2286.3,2286.1,1.26]
[1725710240259,0.7607,2286.3,2286.1,1.26]
[1725710240460,5.1351,2286.3,2286.1,1.26]
[1725710240868,0.7607,2286.3,2286.1,1.26]
[1725710241860,1.19815,2286.3,2286.1,1.26]
[1725710244065,1.19815,2286.3,2285.5,0.43759]
[1725710244066,0.43755,2285.8,2285.5,0.43759]
[1725710244269,3.2078,2285.6,2285.4,0.43761]
[1725710244467,3.2078,2285.6,2285.5,0.4376]
[1725710244669,3.2078,2285.6,2285.4,0.43761]
[1725710245265,3.2078,2285.6,2285.3,1.47958334]